bitfinex/quotes_SOLUSD_20240725
["timestamp","ask_amount","ask_price","bid_price","bid_amount"]
[1721897115294,6.0254,170.81,170.71,21.17129741]
[1721897115509,6.5121,170.85,170.79,14.82]
[1721897115713,14.82,170.84,170.79,14.82]
[1721897116491,15.3937,170.87,170.8,14.82]
[1721897116696,15.3866,170.91,170.85,14.82]
[1721897116920,6.3515,170.94,170.81,85.0]
[1721897116921,14.82,170.9,170.81,85.0]
[1721897117100,14.82,170.9,170.85,14.82]
[1721897117305,6.3515,170.94,170.86,14.82]
[1721897117715,6.3515,170.94,170.88,14.82]
[1721897117903,14.82,170.94,170.88,14.82]
[1721897118222,15.3866,170.95,170.86,40.0]
[1721897118523,15.3866,170.95,170.88,20.0]
[1721897118825,15.3866,170.95,170.88,21.17024455]
[1721897119114,15.3866,170.95,170.86,20.0]
[1721897119320,15.3866,170.95,170.87,45.0]
[1721897119504,6.1793,170.98,170.87,45.0]
[1721897119703,6.1793,170.98,170.9,20.0]
[1721897119906,6.1793,170.98,170.9,40.0]
[1721897120235,6.1793,170.98,170.88,40.0]
[1721897120520,6.1793,170.98,170.92,20.0]
[1721897120723,16.4133,170.99,170.92,20.0]
[1721897121120,6.6067,171.02,170.94,20.0]
[1721897122841,22.3486,171.07,170.96,20.0]
[1721897123131,45.7843,171.07,170.95,45.0]
[1721897123312,17.59,171.05,170.94,20.0]
[1721897123516,17.59,171.05,170.92,26.0184]
[1721897123736,5.8463,171.05,170.94,20.0]
[1721897124040,17.59,171.06,170.93,45.0]
[1721897124336,5.8474,171.02,170.93,45.0]
[1721897125023,35.4669,171.03,170.93,45.0]
[1721897125528,5.8473,171.02,170.92,20.0]
[1721897125731,35.4669,171.03,170.93,45.0]
[1721897126242,29.62,171.03,170.94,20.0]
[1721897126567,29.62,171.03,170.94,21.16984336]
[1721897126708,29.62,171.03,170.93,45.0]
[1721897126709,35.4669,171.03,170.93,45.0]
[1721897127039,5.8473,171.02,170.93,45.0]
[1721897127219,5.848,171.0,170.93,45.0]
[1721897127412,29.62,171.03,170.93,45.0]
[1721897127616,5.8479,171.01,170.92,20.0]
[1721897128113,35.4672,171.03,170.93,45.0]
[1721897128627,5.8474,171.02,170.92,20.0]
[1721897128834,5.8476,171.01,170.92,20.0]
[1721897131031,47.21,171.03,170.89,20.0]
[1721897131342,47.21,171.03,170.88,16.29]
[1721897131343,5.8486,170.98,170.88,16.29]
[1721897131538,5.8489,170.97,170.87,20.0]
[1721897131836,22.9178,170.99,170.87,20.0]
[1721897131837,5.8486,170.98,170.87,20.0]
[1721897132040,5.8489,170.97,170.87,20.0]
[1721897132443,40.5078,170.99,170.85,20.0]
[1721897133135,5.8493,170.96,170.85,20.0]
[1721897133724,17.59,170.96,170.82,32.81940971]
[1721897134068,17.59,170.96,170.82,20.0]
[1721897134540,5.8507,170.92,170.8,36.1727]
[1721897135136,5.8503,170.94,170.83,20.0]
[1721897135346,5.8504,170.93,170.81,20.0]
[1721897135551,47.21,170.94,170.81,20.0]
[1721897136037,5.8511,170.91,170.81,20.0]
[1721897136234,27.5673,170.9,170.8,2.3331576]
[1721897136435,21.7156,170.9,170.79,20.0]
[1721897136648,27.567,170.9,170.79,20.0]
[1721897136852,21.7156,170.9,170.8,45.0]
[1721897137321,27.5669,170.9,170.79,45.0]
[1721897137521,21.7156,170.9,170.8,20.0]
[1721897137819,21.7156,170.9,170.82,20.0]
[1721897138023,16.539,170.94,170.84,20.0]
[1721897138236,22.6436,170.94,170.84,20.0]
[1721897138423,28.4938,170.94,170.82,20.0]
[1721897138925,5.8503,170.93,170.82,20.0]
[1721897140022,22.6436,170.94,170.85,20.0]
[1721897140237,22.6436,170.94,170.87,40.0]
[1721897140543,15.3108,170.98,170.89,40.0]
[1721897141924,15.3108,170.98,170.89,20.0]
[1721897144826,21.1594,170.98,170.89,20.0]
[1721897145022,15.3108,170.98,170.89,20.0]
[1721897145228,15.3108,170.98,170.89,40.0]
[1721897146447,15.3108,170.98,170.91,20.0]
[1721897147457,21.1595,170.98,170.89,20.0]
[1721897148052,15.3108,170.98,170.89,41.17009082]
[1721897148258,15.3108,170.98,170.9,45.0]
[1721897150556,15.3108,170.98,170.91,20.0]
[1721897150758,6.6257,170.99,170.94,20.0]
[1721897151054,16.1914,171.02,170.96,20.0]
[1721897152262,30.9814,171.02,170.97,14.79]
[1721897152856,14.79,171.01,170.96,14.79]
[1721897153354,30.9814,171.02,170.97,14.79]
[1721897154156,16.1914,171.02,170.94,20.0]
[1721897154329,16.1914,171.02,170.95,45.0]
[1721897155258,16.1914,171.02,170.97,20.0]
[1721897155458,16.1914,171.02,170.98,45.0]
[1721897155856,16.1914,171.02,170.97,20.0]
[1721897157453,16.1914,171.02,170.93,20.0]
[1721897157646,16.1914,171.02,170.95,20.0]
[1721897158168,16.1914,171.02,170.97,20.0]
[1721897159759,16.1914,171.02,170.95,20.0]
[1721897159953,16.1914,171.02,170.96,45.0]
[1721897161946,16.1914,171.02,170.93,20.0]
[1721897162261,22.0389,171.02,170.93,20.0]
[1721897162463,16.1914,171.02,170.91,49.59]
[1721897162666,16.1914,171.02,170.92,20.0]
[1721897162863,16.1914,171.02,170.91,49.59]
[1721897163161,16.1914,171.02,170.95,20.0]
[1721897164068,16.1914,171.02,170.96,45.0]
[1721897164868,16.1914,171.02,170.95,20.0]
[1721897165665,16.1914,171.02,170.97,20.0]
[1721897165968,16.1914,171.02,170.98,45.0]
[1721897166459,6.4663,171.03,170.99,20.0]
[1721897168248,6.4663,171.03,170.98,45.0]
[1721897168669,6.4663,171.03,170.99,20.0]
[1721897169268,15.7602,171.06,170.99,20.0]
[1721897170270,15.7602,171.06,170.98,45.0]
[1721897170451,15.7602,171.06,170.96,20.0]
[1721897171051,15.7602,171.06,170.99,20.0]
[1721897171248,15.7602,171.06,170.97,20.0]
[1721897171458,15.7602,171.06,170.99,20.0]
[1721897172352,15.7602,171.06,170.97,20.0]
[1721897172546,15.7602,171.06,170.98,45.0]
[1721897172761,15.7602,171.06,170.97,20.0]
[1721897172946,15.7602,171.06,170.98,45.0]
[1721897173342,15.7602,171.06,170.96,20.0]
[1721897173343,15.7602,171.06,170.99,65.0]
[1721897173549,15.7602,171.06,170.99,20.0]
[1721897176162,30.5502,171.06,171.01,14.79]
[1721897176606,36.3961,171.06,171.0,14.79]
[1721897176873,15.7602,171.06,171.0,34.79]
[1721897177083,30.5502,171.06,171.0,34.79]
[1721897177257,30.5502,171.06,171.01,14.79]
[1721897177567,15.7602,171.06,171.0,20.0]
[1721897177868,15.7602,171.06,171.02,20.0]
[1721897178078,15.7602,171.06,171.03,14.79]
[1721897179282,15.7602,171.06,171.02,14.79]
[1721897179581,15.7602,171.06,171.04,14.79]
[1721897180169,15.7602,171.06,171.03,14.79]
[1721897181457,15.7602,171.06,171.02,14.79]
[1721897183376,30.5502,171.06,170.98,20.0]
[1721897183574,30.5502,171.06,171.01,14.79]
[1721897184276,15.7602,171.06,171.02,14.79]
[1721897184450,15.7602,171.06,171.03,14.79]
[1721897184967,15.7602,171.06,171.0,20.0]
[1721897185161,15.7602,171.06,171.03,14.79]
[1721897186576,15.7602,171.06,171.02,14.79]
[1721897186751,15.7602,171.06,171.02,20.0]
[1721897186956,15.7602,171.06,171.03,14.79]
[1721897187180,0.7913353,171.09,171.05,14.79]
[1721897187364,0.7913353,171.09,171.08,14.79]
[1721897187759,0.7913353,171.09,171.08,79.79]
[1721897188280,5.871,171.14,171.08,79.79]
[1721897188455,15.5147,171.18,171.08,79.79]
[1721897188456,5.89721792,171.17,171.13,14.79]
[1721897188655,5.871,171.15,171.1,20.0]
[1721897188876,20.661,171.14,171.09,14.79]
[1721897189384,14.79,171.13,171.06,20.0]
[1721897189573,5.871,171.14,171.09,14.79]
[1721897189779,5.871,171.14,171.11,14.79]
[1721897189987,5.871,171.15,171.11,14.79]
[1721897190288,5.871,171.15,171.1,65.0]
[1721897190693,5.871,171.15,171.07,20.0]
[1721897190904,5.89721792,171.17,171.08,45.0]
[1721897191194,5.89721792,171.17,171.06,20.0]
[1721897191699,5.89721792,171.17,171.1,20.0]
[1721897191910,5.89721792,171.17,171.08,20.0]
[1721897192696,5.89721792,171.17,171.12,20.0]
[1721897192898,5.89721792,171.17,171.09,20.0]
[1721897193085,0.02621792,171.17,171.09,20.0]
[1721897193401,0.02621792,171.17,171.1,45.0]
[1721897194500,0.02621792,171.17,171.13,20.0]
[1721897195007,0.02621792,171.17,171.11,20.0]
[1721897195177,0.02621792,171.17,171.12,45.0]
[1721897195380,0.02621792,171.17,171.13,1.16850307]
[1721897195578,0.02621792,171.17,171.12,45.0]
[1721897196275,0.02621792,171.17,171.13,20.0]
[1721897198492,0.02621792,171.17,171.12,45.0]
[1721897198789,16.0591,171.16,171.07,20.0]
[1721897199603,16.0591,171.16,171.05,20.0]
[1721897199777,16.0591,171.16,171.09,20.0]
[1721897200302,16.0591,171.16,171.09,40.0]
[1721897200679,16.0591,171.16,171.07,20.0]
[1721897201001,16.0591,171.16,171.12,20.0]
[1721897201805,16.0591,171.16,171.1,20.0]
[1721897201984,16.0591,171.16,171.08,71.85315162]
[1721897203189,16.0591,171.16,171.08,91.85315162]
[1721897203709,16.0591,171.16,171.08,51.85315162]
[1721897203900,16.0591,171.16,171.08,6.85315162]
[1721897204410,16.0591,171.16,171.03,6.17405476]
[1721897204411,33.6491,171.16,171.03,6.17405476]
[1721897204583,29.54,171.14,171.03,6.17405476]
[1721897205002,22.8171,171.15,171.06,20.0]
[1721897206411,22.8171,171.15,171.07,45.0]
[1721897207505,22.8171,171.15,171.08,20.0]
[1721897208412,22.8171,171.15,171.08,21.16885055]
[1721897208592,22.8171,171.15,171.08,20.0]
[1721897209126,22.8171,171.15,171.09,45.0]
[1721897209307,22.8171,171.15,171.08,20.0]
[1721897209686,22.8171,171.15,171.07,45.0]
[1721897210102,35.40841792,171.17,171.06,20.0]
[1721897210404,35.40841792,171.17,170.98,40.0]
[1721897210405,5.8449,171.09,170.98,40.0]
[1721897210711,40.3308,171.12,171.0,20.0]
[1721897210712,5.8445,171.1,171.0,20.0]
[1721897211092,22.7408,171.1,171.0,20.0]
[1721897211305,22.7408,171.1,171.0,40.0]
[1721897211306,28.5853,171.1,171.0,40.0]
[1721897211487,28.5853,171.1,170.98,46.85315162]
[1721897211687,22.7408,171.1,171.03,20.0]
[1721897212016,22.7408,171.1,171.05,20.0]
[1721897212512,22.7408,171.1,171.03,26.85315162]
[1721897212891,22.7408,171.1,171.0,40.0]
[1721897213219,22.7408,171.1,170.98,6.85315162]
[1721897213404,22.7408,171.1,171.02,20.0]
[1721897214226,22.7408,171.1,171.0,20.0]
[1721897214520,22.7408,171.1,170.98,6.85315162]
[1721897214521,22.7408,171.1,170.99,40.0]
[1721897214691,22.7408,171.1,171.01,20.0]
[1721897216394,22.7408,171.1,170.99,46.85315162]
[1721897216602,22.7408,171.1,171.0,45.0]
[1721897216806,22.7408,171.1,170.99,46.85315162]
[1721897216807,28.5853,171.1,170.99,26.85315162]
[1721897217001,5.8449,171.09,170.99,26.85315162]
[1721897217202,22.7408,171.1,171.01,20.0]
[1721897217723,22.7408,171.1,171.02,65.0]
[1721897218020,5.8458,171.07,170.96,20.0]
[1721897218196,6.3982,171.03,170.94,26.85315162]
[1721897218622,6.3982,171.03,170.94,6.85315162]
[1721897219220,17.59,171.02,170.94,6.85315162]
[1721897219408,5.8475,171.02,170.9,28.02316333]
[1721897219599,5.8475,171.02,170.91,6.85315162]
[1721897219802,12.2451,171.03,170.92,20.0]
[1721897220001,5.8473,171.02,170.91,6.85315162]
[1721897220414,33.678,171.0,170.91,6.85315162]
[1721897220701,5.8486,170.98,170.87,26.85315162]
[1721897221324,6.2743,170.99,170.88,20.0]
[1721897222219,12.1226,170.99,170.87,6.85315162]
[1721897222600,12.1226,170.99,170.89,20.0]
[1721897222818,12.1226,170.99,170.87,26.85315162]
[1721897223329,6.2743,170.99,170.87,26.85315162]
[1721897223899,5.8504,170.93,170.82,20.0]
[1721897224099,29.54,170.94,170.82,20.0]
[1721897224100,52.98,170.94,170.82,20.0]
[1721897224705,52.98,170.94,170.81,20.0]
[1721897224904,5.8504,170.93,170.81,20.0]
[1721897225226,35.39,170.94,170.85,20.0]
[1721897225429,35.39,170.94,170.83,20.0]
[1721897225726,35.39,170.94,170.82,20.0]
[1721897225727,29.54,170.94,170.82,20.0]
[1721897225930,5.8503,170.93,170.83,45.0]
[1721897226220,5.8503,170.93,170.82,20.0]
[1721897226426,5.8503,170.93,170.83,45.0]
[1721897226605,5.8507,170.92,170.82,20.0]
[1721897226805,29.54,170.94,170.83,45.0]
[1721897227020,5.8506,170.93,170.82,20.0]
[1721897227602,5.8507,170.92,170.82,20.0]
[1721897227801,29.54,170.94,170.85,20.0]
[1721897228031,21.0331,170.96,170.87,20.0]
[1721897228237,26.8825,170.96,170.85,20.0]
[1721897228608,21.0331,170.96,170.87,20.0]
[1721897229011,21.0331,170.96,170.85,20.0]
[1721897229211,21.0331,170.96,170.86,45.0]
[1721897229527,26.8827,170.96,170.86,45.0]
[1721897229739,21.0331,170.96,170.86,45.0]
[1721897230411,21.0331,170.96,170.85,20.0]
[1721897230607,26.8824,170.96,170.85,20.0]
[1721897230828,21.0331,170.96,170.87,20.0]
[1721897231340,21.0331,170.96,170.89,40.0]
[1721897231659,21.0331,170.96,170.92,20.0]
[1721897231933,21.0331,170.96,170.9,20.0]
[1721897232435,23.1768,171.02,170.92,20.0]
[1721897232607,23.1768,171.02,170.86,45.0]
[1721897232608,23.1768,171.02,170.88,20.0]
[1721897232808,23.1768,171.02,170.89,65.0]
[1721897233106,5.848,171.0,170.89,65.0]
[1721897233520,5.8484,170.99,170.89,65.0]
[1721897233831,5.85,170.94,170.85,20.0]
[1721897234028,5.8504,170.93,170.83,20.0]
[1721897234229,5.8507,170.92,170.83,20.0]
[1721897234434,21.2956,170.91,170.83,20.0]
[1721897237036,5.8516,170.9,170.8,20.0]
[1721897237339,5.8518,170.89,170.79,20.0]
[1721897237527,5.8518,170.89,170.78,7.13804008]
[1721897238321,5.8518,170.89,170.78,6.11944802]
[1721897238535,21.7438,170.88,170.78,6.11944802]
[1721897238840,21.7438,170.88,170.75,20.0]
[1721897239036,51.2838,170.88,170.75,20.0]
[1721897239426,5.8526,170.87,170.75,20.0]
[1721897239627,5.8527,170.86,170.75,20.0]
[1721897239831,5.8534,170.84,170.74,9.16697993]
[1721897240021,21.4822,170.84,170.74,9.16697993]
[1721897240940,29.54,170.82,170.74,9.16697993]
[1721897241325,32.7996,170.81,170.68,6.68786439]
[1721897241538,44.9784,170.79,170.67,20.7913353]
[1721897241737,62.5684,170.79,170.73,9.17319993]
[1721897242039,62.5684,170.79,170.67,20.7913353]
[1721897242221,62.5684,170.79,170.7,9.17432941]
[1721897242421,5.8562,170.76,170.7,9.17432941]
[1721897243025,22.6676,170.74,170.67,0.7913353]
[1721897243431,22.6676,170.74,170.67,9.96673092]
[1721897247535,22.0365,170.78,170.69,40.0]
[1721897247734,22.0365,170.78,170.69,20.0]
[1721897248221,27.892,170.78,170.68,45.0]
[1721897248433,27.892,170.78,170.68,1.17149716]
[1721897248627,27.892,170.78,170.67,49.96673092]
[1721897248822,22.0365,170.78,170.69,40.0]
[1721897249320,22.0365,170.78,170.71,20.0]
[1721897250032,22.0365,170.78,170.69,40.0]
[1721897250228,22.0365,170.78,170.71,20.0]
[1721897250426,22.0365,170.78,170.68,65.0]
[1721897251155,22.0365,170.78,170.68,66.17146677]
[1721897251656,22.0365,170.78,170.68,65.0]
[1721897252226,22.0365,170.78,170.7,20.0]
[1721897253848,22.0365,170.78,170.68,65.0]
[1721897254220,22.0365,170.78,170.68,66.17146001]
[1721897254424,22.0365,170.78,170.68,65.0]
[1721897254752,22.0365,170.78,170.7,20.0]
[1721897254930,22.0365,170.78,170.71,45.0]
[1721897255133,22.0365,170.78,170.68,20.0]
[1721897255846,22.0365,170.78,170.67,29.96673092]
[1721897255847,22.0365,170.78,170.67,9.96673092]
[1721897256048,22.0365,170.78,170.71,20.0]
[1721897256261,22.0365,170.78,170.73,20.0]
[1721897256423,22.0365,170.78,170.74,45.0]
[1721897256827,29.54,170.85,170.74,45.0]
[1721897256828,22.8112,170.84,170.75,20.0]
[1721897257039,22.8112,170.84,170.76,45.0]
[1721897257448,22.8112,170.84,170.72,20.0]
[1721897257629,5.8541,170.82,170.73,45.0]
[1721897257829,5.8544,170.81,170.73,45.0]
[1721897258350,47.13,170.82,170.72,20.0]
[1721897258557,5.8547,170.81,170.72,20.0]
[1721897258729,5.8549,170.8,170.72,20.0]
[1721897259160,16.4871,170.79,170.72,20.0]
[1721897261133,6.3683,170.78,170.72,20.0]
[1721897270358,6.3683,170.78,170.67,9.96673092]
[1721897270556,6.3683,170.78,170.68,45.0]
[1721897270877,12.2239,170.78,170.68,45.0]
[1721897271358,6.3683,170.78,170.69,20.0]
[1721897271693,6.3683,170.78,170.7,45.0]
[1721897272580,6.3683,170.78,170.69,20.0]
[1721897272788,6.3683,170.78,170.7,45.0]
[1721897273274,12.224,170.78,170.67,29.96673092]
[1721897273587,5.8558,170.77,170.67,9.96673092]
[1721897274981,5.8558,170.77,170.68,45.0]
[1721897275584,23.4458,170.77,170.67,9.96673092]
[1721897275878,5.8558,170.77,170.67,9.96673092]
[1721897276079,12.2238,170.78,170.67,9.96673092]
[1721897276269,12.2238,170.78,170.68,1.17160008]
[1721897276594,47.13,170.76,170.67,9.96673092]
[1721897276880,5.8569,170.74,170.67,9.96673092]
[1721897277756,6.5778,170.71,170.67,9.96673092]
[1721897283667,6.5778,170.71,170.67,0.7913353]
[1721897287261,12.4357,170.71,170.67,0.7913353]
[1721897287468,6.5778,170.71,170.67,0.7913353]
[1721897289399,12.4357,170.71,170.67,0.7913353]
[1721897291278,6.5778,170.71,170.67,0.7913353]
[1721897292377,12.4357,170.71,170.67,0.7913353]
[1721897294497,6.5778,170.71,170.67,0.7913353]
[1721897296393,15.5949,170.73,170.67,0.7913353]
[1721897297098,15.5949,170.73,170.67,45.7913353]
[1721897302892,15.5949,170.73,170.67,0.7913353]
[1721897306717,15.5949,170.73,170.67,0.7913353]
[1721897307705,15.5949,170.73,170.67,20.7913353]
[1721897308280,15.5949,170.73,170.67,0.7913353]
[1721897312396,6.0355,170.75,170.68,20.0]
[1721897312700,15.8659,170.77,170.7,20.0]
[1721897312885,15.8659,170.77,170.71,45.0]
[1721897314412,15.8659,170.77,170.68,20.0]
[1721897314589,15.8659,170.77,170.69,45.0]
[1721897316978,15.8659,170.77,170.68,65.0]
[1721897317578,15.8659,170.77,170.68,45.0]
[1721897317781,15.8659,170.77,170.68,65.0]
[1721897318206,14.84,170.75,170.69,14.84]
[1721897318610,14.84,170.74,170.69,14.84]
[1721897319785,14.84,170.75,170.69,14.84]
[1721897320288,14.84,170.75,170.7,45.0]
[1721897320489,14.84,170.75,170.7,65.0]
[1721897321806,14.84,170.76,170.7,79.84]
[1721897323528,14.84,170.76,170.7,99.84]
[1721897323684,14.84,170.76,170.71,34.84]
[1721897324115,14.84,170.76,170.71,14.84]
[1721897324410,14.84,170.74,170.67,0.7913353]
[1721897324603,14.84,170.74,170.68,14.84]
[1721897325011,14.84,170.76,170.71,14.84]
[1721897325202,12.4768,170.8,170.71,14.84]
[1721897325203,14.84,170.77,170.71,14.84]
[1721897325590,14.84,170.76,170.71,14.84]
[1721897326612,14.84,170.77,170.71,14.84]
[1721897327407,14.84,170.76,170.68,20.0]
[1721897327604,14.84,170.76,170.7,14.84]
[1721897327813,14.84,170.75,170.7,14.84]
[1721897328017,14.84,170.74,170.69,59.84]
[1721897328313,14.84,170.73,170.67,0.7913353]
[1721897328511,14.84,170.73,170.67,15.6313353]
[1721897330797,14.84,170.72,170.67,15.6313353]
[1721897330998,14.84,170.71,170.67,0.7913353]
[1721897331793,14.84,170.7,170.67,0.7913353]
[1721897332023,14.84,170.69,170.67,0.7913353]
[1721897332327,14.84,170.68,170.67,0.7913353]
[1721897332503,14.84,170.69,170.67,0.7913353]
[1721897333319,14.84,170.68,170.67,0.7913353]
[1721897339719,20.6989,170.68,170.67,0.7913353]
[1721897340034,14.84,170.68,170.67,0.7913353]
[1721897340331,20.6989,170.68,170.67,0.7913353]
[1721897340799,14.84,170.68,170.67,0.7913353]
[1721897341418,80.2155,170.73,170.67,0.7913353]
[1721897341419,5.8581,170.71,170.67,0.7913353]
[1721897341699,14.84,170.68,170.67,0.7913353]
[1721897342718,23.822,170.73,170.67,0.7913353]
[1721897343034,14.84,170.69,170.67,0.7913353]
[1721897343331,14.84,170.68,170.67,0.7913353]
[1721897343518,15.6182,170.74,170.67,0.7913353]
[1721897343724,14.84,170.73,170.67,15.6313353]
[1721897345032,14.84,170.75,170.7,14.84]
[1721897345234,14.84,170.74,170.69,14.84]
[1721897345534,14.84,170.72,170.67,15.6313353]
[1721897345704,14.84,170.72,170.67,0.7913353]
[1721897346024,14.84,170.71,170.67,45.7913353]
[1721897346398,14.84,170.72,170.67,45.7913353]
[1721897346622,14.84,170.71,170.67,0.7913353]
[1721897347321,15.1798,170.78,170.67,15.6313353]
[1721897347530,14.84,170.73,170.68,14.84]
[1721897347913,14.84,170.73,170.67,0.7913353]
[1721897347914,14.84,170.72,170.67,15.6313353]
[1721897348221,14.84,170.72,170.67,0.7913353]
[1721897348425,14.84,170.72,170.67,45.7913353]
[1721897348730,14.84,170.72,170.67,60.6313353]
[1721897350139,14.84,170.72,170.67,45.7913353]
[1721897350508,14.84,170.72,170.67,60.6313353]
[1721897352115,15.1798,170.78,170.67,60.6313353]
[1721897352326,15.1798,170.78,170.69,14.84]
[1721897352327,14.84,170.74,170.69,14.84]
[1721897353908,14.84,170.74,170.7,45.0]
[1721897354511,14.84,170.73,170.7,45.0]
[1721897355112,14.84,170.73,170.67,0.7913353]
[1721897355314,14.84,170.71,170.67,0.7913353]
[1721897355524,14.84,170.69,170.67,0.7913353]
[1721897355723,14.84,170.68,170.67,0.7913353]
[1721897362422,6.0214,170.73,170.67,0.7913353]
[1721897362623,14.84,170.71,170.67,0.7913353]
[1721897362941,14.84,170.73,170.68,14.84]
[1721897363322,14.84,170.71,170.67,0.7913353]
[1721897363516,14.84,170.7,170.67,0.7913353]
[1721897364234,14.84,170.69,170.67,0.7913353]
[1721897365055,14.84,170.68,170.67,0.7913353]
[1721897365542,14.84,170.69,170.67,0.7913353]
[1721897365919,17.61,170.76,170.67,0.7913353]
[1721897366123,14.84,170.71,170.67,0.7913353]
[1721897366848,14.84,170.7,170.67,0.7913353]
[1721897368139,14.84,170.71,170.67,0.7913353]
[1721897368658,14.84,170.7,170.67,0.7913353]
[1721897370427,14.84,170.69,170.67,0.7913353]
[1721897370653,14.84,170.68,170.67,0.7913353]
[1721897375447,38.3089,170.68,170.67,0.7913353]
[1721897375749,20.6989,170.68,170.67,0.7913353]
[1721897375948,38.3089,170.68,170.67,0.7913353]
[1721897376170,20.6989,170.68,170.67,0.7913353]
[1721897376673,38.3089,170.68,170.67,0.7913353]
[1721897377251,20.6989,170.68,170.67,0.7913353]
[1721897377568,14.84,170.68,170.67,0.7913353]
[1721897378264,20.6989,170.68,170.67,0.7913353]
[1721897378769,38.3089,170.68,170.67,0.7913353]
[1721897378957,14.84,170.68,170.67,0.7913353]
[1721897379274,20.6989,170.68,170.67,0.7913353]
[1721897380060,38.3089,170.68,170.67,0.7913353]
[1721897380269,14.84,170.6,170.57,9.17926793]
[1721897381048,32.45,170.58,170.57,9.17926793]
[1721897381249,48.0618,170.58,170.5,0.7913353]
[1721897381449,38.3147,170.51,170.5,0.7913353]
[1721897382049,14.84,170.51,170.5,0.7913353]
[1721897382248,20.7047,170.51,170.5,0.7913353]
[1721897384173,5.8647,170.51,170.5,0.7913353]
[1721897386258,23.4747,170.51,170.5,0.7913353]
[1721897387462,68.4747,170.51,170.5,0.7913353]
[1721897388068,23.4747,170.51,170.5,0.7913353]
[1721897389075,103.607,170.51,170.5,0.7913353]
[1721897389983,58.607,170.51,170.5,0.7913353]
[1721897390293,32.7423,170.51,170.5,0.7913353]
[1721897390460,38.607,170.51,170.5,0.7913353]
[1721897391074,17.61,170.51,170.5,0.7913353]
[1721897391364,35.6444,170.52,170.5,0.7913353]
[1721897391758,47.39,170.52,170.5,0.7913353]
[1721897391961,23.4747,170.51,170.5,0.7913353]
[1721897394290,5.8661,170.47,170.35,28.19035418]
[1721897394489,29.78,170.47,170.35,22.0815]
[1721897394663,35.6461,170.47,170.36,45.0]
[1721897395193,29.78,170.47,170.36,65.0]
[1721897395488,23.4755,170.49,170.38,20.0]
[1721897395692,23.4755,170.49,170.39,45.0]
[1721897395868,17.61,170.49,170.39,45.0]
[1721897396068,23.4754,170.49,170.39,45.0]
[1721897396372,5.8662,170.47,170.39,45.0]
[1721897396691,17.61,170.49,170.36,20.0]
[1721897396889,35.6462,170.47,170.35,42.0815]
[1721897397291,23.4766,170.46,170.35,42.0815]
[1721897397477,29.78,170.47,170.35,42.0815]
[1721897397682,29.78,170.47,170.36,20.0]
[1721897397905,47.39,170.47,170.35,22.0815]
[1721897398197,5.8667,170.46,170.35,22.0815]
[1721897398495,23.4767,170.46,170.35,22.0815]
[1721897398674,5.8668,170.45,170.36,45.0]
[1721897398871,23.4765,170.46,170.36,45.0]